bitfinex-derivatives/quotes_SOLF0:USTF0_20250520
["timestamp","ask_amount","ask_price","bid_price","bid_amount"]
[1747721404645,0.04010819,168.71,168.68,62.1]
[1747721404947,0.04010819,168.71,168.68,64.0233]
[1747721405445,0.04010819,168.71,168.68,69.9501]
[1747721405840,0.04010819,168.71,168.68,62.1]
[1747721406040,0.04010819,168.71,168.67,0.04519835]
[1747721406240,5.9264,168.7,168.67,0.04519835]
[1747721407552,5.9269,168.68,168.67,0.04519835]
[1747721407943,0.04010819,168.71,168.67,0.04519835]
[1747721408949,5.96610819,168.71,168.68,5.9266]
[1747721409149,0.04010819,168.71,168.68,5.9266]
[1747721409448,0.04010819,168.71,168.67,0.04519835]
[1747721410651,5.9263,168.7,168.67,5.97239835]
[1747721410848,0.04010819,168.71,168.67,5.97239835]
[1747721411161,5.96620819,168.71,168.68,5.9269]
[1747721412248,0.04010819,168.71,168.69,5.9264]
[1747721412748,0.04010819,168.71,168.67,0.04519835]
[1747721412949,5.96600819,168.71,168.68,5.9268]
[1747721414356,0.04010819,168.71,168.68,5.9268]
[1747721414752,0.04010819,168.71,168.69,5.9264]
[1747721415557,0.04010819,168.71,168.68,5.9268]
[1747721415759,5.96620819,168.71,168.68,5.9268]
[1747721419760,0.04010819,168.71,168.69,5.9265]
[1747721420060,0.04010819,168.71,168.67,0.04519835]
[1747721420262,0.04010819,168.71,168.7,5.9262]
[1747721424568,0.04010819,168.71,168.69,68.0265]
[1747721425065,0.04010819,168.71,168.69,62.1]
[1747721425271,0.04010819,168.71,168.7,5.9262]
[1747721425568,0.04010819,168.71,168.69,62.1]
[1747721426570,0.04010819,168.71,168.69,68.0262]
[1747721426972,0.04010819,168.71,168.69,62.1]
[1747721427269,0.04010819,168.71,168.7,5.9262]
[1747721427469,0.04010819,168.71,168.69,62.1]
[1747721427670,5.9269,168.68,168.67,0.04519835]
[1747721428969,5.9269,168.68,168.67,9.835e-05]
[1747721429272,5.9293,168.62,168.58,62.0]
[1747721430374,5.97071931,168.62,168.58,62.04521776]
[1747721430571,5.9294,168.61,168.58,67.97551776]
[1747721431373,5.9301,168.59,168.58,62.04521776]
[1747721431674,5.9301,168.59,168.58,0.04521776]
[1747721433666,5.9298,168.6,168.58,0.04521776]
[1747721434175,0.04141931,168.62,168.58,0.04521776]
[1747721435175,5.9296,168.61,168.58,0.04521776]
[1747721436276,5.9298,168.6,168.58,0.04521776]
[1747721443872,5.9294,168.61,168.58,0.04521776]
[1747721444180,0.04141931,168.62,168.58,0.04521776]
[1747721445280,5.9294,168.61,168.58,0.04521776]
[1747721445487,0.04141931,168.62,168.58,0.04521776]
[1747721446277,5.9301,168.59,168.58,0.04521776]
[1747721448179,0.04141931,168.62,168.58,0.04521776]
[1747721448878,5.9301,168.59,168.58,0.04521776]
[1747721449085,62.04,168.6,168.5,63.9488]
[1747721449483,6.33383138,168.58,168.5,63.9488]
[1747721450074,0.04445504,168.56,168.52,0.04312771]
[1747721450283,68.37383138,168.55,168.52,0.04312771]
[1747721450992,5.9322,168.53,168.52,0.04312771]
[1747721455075,5.9319,168.54,168.52,0.04312771]
[1747721455376,68.37383138,168.55,168.52,0.04312771]
[1747721455587,74.30543138,168.55,168.52,0.04312771]
[1747721456588,68.37383138,168.55,168.52,0.04312771]
[1747721457493,5.9322,168.53,168.52,0.04312771]
[1747721457885,68.37383138,168.55,168.43,62.04]
[1747721458090,5.9329,168.51,168.46,5.9344]
[1747721458503,6.33383138,168.55,168.44,5.9351]
[1747721458683,6.33383138,168.51,168.4,65.8974]
[1747721458982,0.03769759,168.47,168.44,0.04361934]
[1747721460883,5.97209759,168.47,168.44,0.04361934]
[1747721461191,0.03769759,168.47,168.44,0.04361934]
[1747721461495,5.97209759,168.47,168.44,0.04361934]
[1747721461890,0.03769759,168.47,168.44,0.04361934]
[1747721466597,5.97199759,168.47,168.44,0.04361934]
[1747721466897,0.03769759,168.47,168.44,0.04361934]
[1747721467894,67.9922,168.53,168.44,62.10361934]
[1747721468200,67.9922,168.53,168.44,62.06]
[1747721468798,0.03926997,168.5,168.47,0.04458584]
[1747721469504,0.03926997,168.5,168.48,5.9337]
[1747721469996,0.03926997,168.5,168.47,0.04458584]
[1747721470195,0.03926997,168.5,168.49,5.9336]
[1747721470400,0.03926997,168.5,168.47,0.04458584]
[1747721471803,0.03926997,168.5,168.48,5.9339]
[1747721471998,0.03926997,168.5,168.47,0.04458584]
[1747721473905,5.97246997,168.5,168.47,0.04458584]
[1747721474699,0.03926997,168.5,168.47,0.04458584]
[1747721475002,5.97246997,168.5,168.47,0.04458584]
[1747721475602,5.9339,168.48,168.47,0.04458584]
[1747721476095,0.03926997,168.5,168.47,0.04458584]
[1747721476602,5.97276997,168.5,168.47,0.04458584]
[1747721477001,0.03926997,168.5,168.47,0.04458584]
[1747721477201,0.03926997,168.5,168.47,5.97858584]
[1747721477396,0.03926997,168.5,168.47,0.04458584]
[1747721477901,0.03926997,168.5,168.48,5.9337]
[1747721479404,0.03926997,168.5,168.47,5.97868584]
[1747721480308,0.03926997,168.5,168.48,5.9339]
[1747721481907,0.03926997,168.5,168.47,5.97868584]
[1747721482209,0.03926997,168.5,168.47,0.04458584]
[1747721482509,0.03926997,168.5,168.49,5.9336]
[1747721482709,6.33383138,168.57,168.48,68.1705]
[1747721483007,5.9313,168.56,168.48,68.1705]
[1747721483208,6.33383138,168.57,168.51,5.9327]
[1747721483409,6.33383138,168.57,168.48,68.1705]
[1747721483606,0.03851873,168.54,168.51,0.03817371]
[1747721483814,0.04303811,168.54,168.52,62.06]
[1747721484112,62.06,168.62,168.57,5.9306]
[1747721484311,518.87383138,168.64,168.52,62.06]
[1747721484915,0.04558885,168.6,168.56,0.0454999]
[1747721485610,0.04558885,168.6,168.57,5.9306]
[1747721486511,0.04558885,168.6,168.56,5.9764999]
[1747721486712,5.97508885,168.6,168.56,0.0454999]
[1747721487012,0.04558885,168.6,168.56,5.9761999]
[1747721487309,0.04558885,168.6,168.56,0.0454999]
[1747721487713,62.06558885,168.6,168.56,0.0454999]
[1747721488215,5.9303,168.57,168.56,0.0454999]
[1747721489514,62.06558885,168.6,168.56,0.0454999]
[1747721490114,0.04558885,168.6,168.56,0.0454999]
[1747721490914,5.9297,168.59,168.56,0.0454999]
[1747721493211,5.97488885,168.6,168.56,0.0454999]
[1747721494115,5.9297,168.59,168.56,0.0454999]
[1747721495010,5.9301,168.58,168.56,0.0454999]
[1747721496318,5.9297,168.59,168.56,0.0454999]
[1747721497719,5.97498885,168.6,168.56,5.9760999]
[1747721497912,0.04558885,168.6,168.56,0.0454999]
[1747721498113,0.04558885,168.6,168.56,62.0454999]
[1747721498913,6.33383138,168.66,168.57,3.973]
[1747721499309,5.9289,168.62,168.58,5.9298]
[1747721499508,6.33383138,168.66,168.57,3.973]
[1747721499818,0.03985778,168.63,168.6,0.04543473]
[1747721500616,5.929,168.61,168.6,0.04543473]
[1747721505317,5.9307,168.56,168.53,63.9294]
[1747721505517,6.33383138,168.6,168.53,62.0]
[1747721506117,5.9314,168.54,168.53,62.0]
[1747721506316,5.9314,168.54,168.52,2.06398644]
[1747721506613,5.97137088,168.55,168.52,2.06398644]
[1747721506817,0.04007088,168.55,168.52,2.06398644]
[1747721507722,0.04007088,168.55,168.53,5.9315]
[1747721509032,0.04007088,168.55,168.52,7.99598644]
[1747721509328,0.04007088,168.55,168.52,2.06398644]
[1747721509928,0.04007088,168.55,168.54,5.9314]
[1747721510127,0.04007088,168.55,168.54,67.9314]
[1747721512823,6.33383138,168.63,168.57,5.9301]
[1747721513830,0.04542015,168.62,168.58,0.04266975]
[1747721514430,5.9295,168.6,168.58,0.04266975]
[1747721515232,5.9297,168.59,168.58,0.04266975]
[1747721516934,5.9294,168.6,168.58,0.04266975]
[1747721517438,0.04542015,168.62,168.58,0.04266975]
[1747721518135,5.9297,168.59,168.58,0.04266975]
[1747721522345,5.9314,168.54,168.51,67.8922]
[1747721522849,5.9318,168.53,168.51,61.96]
[1747721523146,6.33383138,168.58,168.51,61.96]
[1747721523359,0.03907489,168.56,168.53,0.04368623]
[1747721524150,5.9314,168.54,168.53,0.04368623]
[1747721525364,74.26643639,168.54,168.35,71.64918042]
[1747721525557,6.34643639,168.48,168.37,2.0357]
[1747721525756,68.32643639,168.48,168.4,5.9363]
[1747721525961,5.935,168.44,168.37,2.0357]
[1747721526361,0.03792236,168.42,168.39,5.97413854]
[1747721526558,0.03792236,168.42,168.39,0.03753854]
[1747721527447,5.97352236,168.42,168.39,0.03753854]
[1747721527652,0.03792236,168.42,168.39,0.03753854]
[1747721528752,0.03792236,168.42,168.39,62.01753854]
[1747721529452,61.98,168.49,168.39,62.01753854]
[1747721529660,68.32643639,168.51,168.39,68.36397493]
[1747721529854,512.78,168.52,168.39,68.32643639]
[1747721530154,5.9327,168.51,168.39,68.32643639]
[1747721530558,0.04179212,168.47,168.43,0.04268161]
[1747721530758,0.04179212,168.47,168.44,62.0]
[1747721531760,0.04179212,168.47,168.46,5.9342]
[1747721531951,68.32643639,168.53,168.45,1.8887]
[1747721532150,5.9321,168.52,168.45,1.8887]
[1747721532855,0.0426871,168.5,168.45,1.8887]
[1747721533060,0.0426871,168.5,168.47,0.03967259]
[1747721533358,0.0426871,168.5,168.48,5.9335]
[1747721533553,0.0426871,168.5,168.47,0.03967259]
[1747721534059,0.0426871,168.5,168.47,5.97357259]
[1747721534261,5.9755871,168.5,168.47,5.97357259]
[1747721535060,0.0426871,168.5,168.47,5.97357259]
[1747721535757,5.9335,168.48,168.47,0.03967259]
[1747721535956,0.0426871,168.5,168.47,0.03967259]
[1747721536261,5.9332,168.49,168.47,0.03967259]
[1747721537659,5.9335,168.48,168.47,0.03967259]
[1747721539065,0.0426871,168.5,168.47,0.03967259]
[1747721539760,5.9332,168.49,168.47,0.03967259]
[1747721540465,0.0426871,168.5,168.47,0.03967259]
[1747721541256,0.0426871,168.5,168.48,5.9333]
[1747721541561,0.0426871,168.5,168.47,0.03967259]
[1747721541764,0.0426871,168.5,168.49,5.9332]
[1747721545467,0.0426871,168.5,168.47,0.03967259]
[1747721546057,0.0426871,168.5,168.48,5.9332]
[1747721546666,0.0426871,168.5,168.49,5.9332]
[1747721547568,0.0426871,168.5,168.48,5.9335]
[1747721549175,5.9754871,168.5,168.47,5.97347259]
[1747721549670,0.0426871,168.5,168.47,0.03967259]
[1747721550571,0.0426871,168.5,168.48,5.9335]
[1747721552769,0.0426871,168.5,168.47,0.03967259]
[1747721553272,5.9335,168.48,168.47,0.03967259]
[1747721555566,5.9333,168.49,168.47,0.03967259]
[1747721555764,0.0426871,168.5,168.47,0.03967259]
[1747721556269,0.0426871,168.5,168.47,61.99967259]
[1747721556771,0.0426871,168.5,168.49,5.9332]
[1747721557872,5.9308,168.56,168.52,5.9318]
[1747721558369,5.9308,168.56,168.53,5.9318]
[1747721558675,5.9305,168.57,168.47,61.96]
[1747721558874,0.03937497,168.54,168.5,0.04064524]
[1747721559074,0.03937497,168.54,168.51,61.96]
[1747721559574,0.03937497,168.54,168.53,5.9316]
[1747721563875,61.96,168.61,168.57,5.9301]
[1747721564074,10.36393639,168.63,168.51,67.8166]
[1747721564276,6.34643639,168.62,168.51,67.8166]
[1747721564478,6.34643639,168.62,168.54,5.9312]
[1747721564676,5.9301,168.58,168.54,5.9312]
[1747721564878,5.96819543,168.58,168.54,5.9751573]
[1747721566078,0.03809543,168.58,168.55,5.931]
[1747721566771,0.03809543,168.58,168.56,5.9307]
[1747721568478,0.03809543,168.58,168.55,67.871]
[1747721569073,0.03809543,168.58,168.56,5.9306]
[1747721570974,0.03809543,168.58,168.57,5.9304]
[1747721583793,0.03809543,168.58,168.55,61.94]
[1747721583794,5.96839543,168.58,168.55,61.94]
[1747721584196,0.03809543,168.58,168.54,0.0439573]
[1747721585805,6.38453182,168.58,168.54,0.0439573]
[1747721586505,5.9311,168.55,168.54,0.0439573]
[1747721588498,5.933,168.5,168.44,3.8446]
[1747721588703,6.34421874,168.51,168.41,61.92]
[1747721589104,6.34421874,168.51,168.45,5.9345]
[1747721589310,6.34421874,168.51,168.41,61.92]
[1747721589499,0.0453746,168.48,168.44,0.03848526]
[1747721590708,0.0453746,168.48,168.46,5.934]
[1747721590906,0.0453746,168.48,168.44,0.03848526]
[1747721591108,0.0453746,168.48,168.45,61.94]
[1747721591608,0.0453746,168.48,168.47,5.9339]
[1747721605718,7.46e-05,168.48,168.47,5.9339]
[1747721614523,7.46e-05,168.48,168.45,61.92]
[1747721614524,7.46e-05,168.48,168.46,5.9341]
[1747721615324,7.46e-05,168.48,168.47,5.9339]
[1747721615533,7.46e-05,168.48,168.45,61.92]
[1747721615922,7.46e-05,168.48,168.46,5.934]
[1747721616420,7.46e-05,168.48,168.45,61.92]
[1747721617626,5.9336746,168.48,168.45,67.8542]
[1747721622226,7.46e-05,168.48,168.46,5.9341]
[1747721623534,7.46e-05,168.48,168.47,5.9339]
[1747721635442,63.8534,168.58,168.54,5.9312]
[1747721635641,63.8534,168.58,168.5,61.94]
[1747721635843,1.9134,168.58,168.5,61.94]
[1747721636041,6.34421874,168.59,168.54,5.9311]
[1747721636344,61.94,168.61,168.5,61.94]
[1747721636538,0.04551052,168.57,168.54,0.04367131]
[1747721636739,0.04551052,168.57,168.55,5.9308]
[1747721636941,0.04551052,168.57,168.54,0.04367131]
[1747721637243,0.04551052,168.57,168.54,5.97487131]
[1747721637747,5.9309,168.56,168.54,0.04367131]
[1747721640145,5.97601052,168.57,168.54,5.97497131]
[1747721640349,0.04551052,168.57,168.54,0.04367131]
[1747721640845,6.38972926,168.57,168.54,0.04367131]
[1747721641044,5.9555,168.56,168.48,61.88]
[1747721641244,5.9322,168.52,168.49,5.933]
[1747721641446,5.9322,168.52,168.48,61.88]
[1747721641746,5.9322,168.52,168.49,5.933]
[1747721641939,0.04161278,168.52,168.49,0.04547875]
[1747721644050,5.9328,168.5,168.49,0.04547875]
[1747721651858,5.935,168.44,168.39,574.5]
[1747721652058,6.34421874,168.48,168.39,61.9]
[1747721652259,68.24421874,168.48,168.4,5.9363]
[1747721652658,68.24421874,168.48,168.39,61.9]
[1747721652852,5.9353,168.43,168.42,0.04147985]
[1747721653760,5.97445656,168.45,168.42,0.04147985]
[1747721654059,0.03965656,168.45,168.42,0.04147985]
[1747721655556,0.03965656,168.45,168.44,5.9349]
[1747721665965,0.03965656,168.45,168.43,61.9]
[1747721666461,0.03965656,168.45,168.43,67.835]
[1747721667062,5.9353,168.43,168.42,0.04147985]
[1747721667363,68.28901655,168.45,168.32,61.9]
[1747721667566,68.24935999,168.45,168.36,3.9347]
[1747721667866,68.24935999,168.45,168.37,61.9]
[1747721668053,6.34935999,168.45,168.37,61.9]
[1747721668252,0.03942828,168.43,168.39,0.04081295]
[1747721668664,5.97482828,168.43,168.39,0.04081295]
[1747721669163,5.97482828,168.43,168.39,5.97741295]
[1747721669765,5.9356,168.42,168.39,0.04081295]
[1747721670065,0.03942828,168.43,168.39,0.04081295]
[1747721670666,5.97482828,168.43,168.39,0.04081295]
[1747721671560,5.97482828,168.43,168.4,5.9363]
[1747721672967,5.9359,168.42,168.39,0.04081295]
[1747721673264,0.03942828,168.43,168.39,0.04081295]
[1747721673668,5.9357,168.42,168.39,0.04081295]
[1747721674873,0.03942828,168.43,168.39,0.04081295]
[1747721678168,5.9356,168.42,168.39,5.97731295]
[1747721678368,5.9356,168.42,168.39,0.04081295]
[1747721679167,5.9356,168.42,168.39,5.97741295]
[1747721680068,5.9356,168.42,168.39,0.04081295]
[1747721680265,5.97482828,168.43,168.39,0.04081295]
[1747721681268,5.97482828,168.43,168.4,5.9363]
[1747721681472,5.97482828,168.43,168.39,0.04081295]
[1747721681968,5.9357,168.42,168.39,0.04081295]
[1747721682572,5.936,168.41,168.39,0.04081295]
[1747721683868,0.03942828,168.43,168.39,0.04081295]
[1747721684070,5.9363,168.4,168.39,0.04081295]
[1747721688676,5.9361,168.41,168.39,0.04081295]
[1747721688874,0.03942828,168.43,168.39,0.04081295]
[1747721689782,5.9363,168.4,168.39,0.04081295]
[1747721690577,0.03942828,168.43,168.39,0.04081295]
[1747721691478,5.9363,168.4,168.39,0.04081295]
[1747721691876,0.03942828,168.43,168.39,0.04081295]
[1747721692075,0.03942828,168.43,168.39,5.97741295]
[1747721692384,0.03942828,168.43,168.39,0.04081295]
[1747721692678,5.9362,168.41,168.39,0.04081295]
[1747721692880,0.03942828,168.43,168.39,0.04081295]
[1747721693776,5.9362,168.41,168.39,0.04081295]
[1747721694679,5.9363,168.4,168.39,0.04081295]
[1747721712398,9.99936355,168.4,168.39,0.04081295]
[1747721712594,5.9363,168.4,168.39,0.04081295]
[1747721716601,5.936,168.41,168.39,0.04081295]
[1747721717001,5.9357,168.42,168.39,0.04081295]
[1747721718899,10.03789183,168.43,168.39,0.04081295]
[1747721719100,10.03789183,168.43,168.39,5.97741295]
[1747721719798,5.9358,168.42,168.39,0.04081295]
[1747721720506,5.936,168.41,168.39,0.04081295]
[1747721720701,4.10249183,168.43,168.39,0.04081295]
[1747721721401,5.9362,168.41,168.39,0.04081295]
[1747721721603,4.10249183,168.43,168.39,0.04081295]
[1747721722101,5.9363,168.4,168.39,0.04081295]
[1747721722304,4.10249183,168.43,168.39,0.04081295]
[1747721722504,0.03942828,168.43,168.39,0.04081295]
[1747721722806,5.9363,168.4,168.39,0.04081295]
[1747721728006,9.99936355,168.4,168.39,0.04081295]
[1747721728206,5.9377,168.36,168.35,9.66918042]
[1747721729410,5.9377,168.36,168.35,1.72008042]
[1747721729705,10.0028825,168.36,168.35,1.72008042]
[1747721730311,10.0051825,168.36,168.26,61.82]
[1747721730507,61.82,168.37,168.26,61.82]
[1747721730707,5.9398,168.31,168.27,4.0651825]
[1747721730912,4.0651825,168.34,168.27,4.0651825]
[1747721731306,0.04001773,168.32,168.29,0.04309068]
[1747721732115,0.04001773,168.32,168.29,5.98309068]
[1747721732316,5.97921773,168.32,168.29,0.04309068]
[1747721732518,0.04001773,168.32,168.29,0.04309068]
[1747721734920,5.9395,168.31,168.29,0.04309068]
[1747721735120,0.04001773,168.32,168.29,0.04309068]
[1747721735717,5.9399,168.3,168.29,0.04309068]
[1747721737016,5.9396,168.31,168.29,0.04309068]
[1747721737216,0.04001773,168.32,168.29,0.04309068]
[1747721738819,0.04001773,168.32,168.29,1.93799068]
[1747721739019,0.04001773,168.32,168.31,5.9395]
[1747721739522,0.04001773,168.32,168.29,1.93799068]
[1747721740624,0.04001773,168.32,168.29,7.87819068]
[1747721741011,0.04001773,168.32,168.29,1.93799068]
[1747721741812,5.9395,168.31,168.29,1.93799068]
[1747721742219,0.04001773,168.32,168.29,1.93799068]
[1747721742722,5.9395,168.31,168.29,1.93799068]
[1747721744726,5.9399,168.3,168.29,1.93799068]
[1747721748131,5.9399,168.3,168.29,0.04309068]
[1747721756448,5.9396,168.31,168.29,0.04309068]
[1747721756846,0.04001773,168.32,168.29,0.04309068]
[1747721757647,5.9399,168.3,168.29,0.04309068]
[1747721761654,0.04001773,168.32,168.29,0.04309068]
[1747721762250,5.97941773,168.32,168.29,0.04309068]
[1747721763054,5.97941773,168.32,168.29,5.98329068]
[1747721763354,5.97941773,168.32,168.29,0.04309068]
[1747721763955,0.04001773,168.32,168.29,0.04309068]
[1747721764255,0.04001773,168.32,168.29,68.88319068]
[1747721764864,0.04001773,168.32,168.29,62.94309068]
[1747721765159,0.04001773,168.32,168.29,68.88319068]
[1747721765759,0.04001773,168.32,168.3,5.9398]
[1747721766759,0.04001773,168.32,168.29,68.88329068]
[1747721766960,0.04001773,168.32,168.29,62.94309068]
[1747721767857,0.04001773,168.32,168.3,1.8894]
[1747721768460,0.04001773,168.32,168.31,5.9395]
[1747721768660,6.35445157,168.41,168.3,1.8894]
[1747721768960,62.9,168.4,168.31,1.8845]
[1747721769161,62.9,168.4,168.32,5.9389]
[1747721769657,5.9377,168.37,168.34,0.04378312]
[1747721769857,0.04534584,168.38,168.34,0.04378312]
[1747721770257,5.938,168.36,168.34,0.04378312]
[1747721770956,5.9375,168.37,168.34,0.04378312]
[1747721771964,0.04534584,168.38,168.34,0.04378312]
[1747721772263,0.04534584,168.38,168.37,5.9374]
[1747721772459,69.25445157,168.44,168.34,0.04378312]
[1747721773163,62.9,168.44,168.34,0.04378312]
[1747721773463,0.04373841,168.41,168.34,0.04378312]
[1747721773661,0.04373841,168.41,168.34,6.39823469]
[1747721774162,0.04373841,168.41,168.4,5.9363]
[1747721775667,0.04373841,168.41,168.39,5.97794081]
[1747721775865,0.04373841,168.41,168.39,0.04134081]
[1747721776458,0.04373841,168.41,168.4,5.9363]
[1747721777663,0.04373841,168.41,168.39,5.97794081]
[1747721779468,0.04373841,168.41,168.39,0.04134081]
[1747721780272,5.9363,168.4,168.39,0.04134081]
[1747721782975,5.97983841,168.41,168.39,0.04134081]
[1747721783174,0.04373841,168.41,168.39,0.04134081]
[1747721786773,62.88,168.48,168.4,5.9361]
[1747721787078,63.165,168.5,168.4,5.9361]
[1747721787268,5.9349,168.44,168.4,5.9361]
[1747721787675,5.97291425,168.44,168.4,5.97893896]
[1747721787878,0.03801425,168.44,168.41,5.9359]
[1747721788475,0.03801425,168.44,168.4,0.04283896]
[1747721789066,5.97291425,168.44,168.4,5.97913896]
[1747721789781,0.03801425,168.44,168.41,5.9359]
[1747721793083,5.97301425,168.44,168.41,5.9359]
[1747721793581,5.97301425,168.44,168.4,0.04283896]
[1747721793582,0.03801425,168.44,168.4,0.04283896]
[1747721793768,5.9355,168.43,168.4,0.04283896]
[1747721794270,0.03801425,168.44,168.4,0.04283896]
[1747721795285,5.9354,168.43,168.4,5.97913896]
[1747721795781,0.03801425,168.44,168.4,5.97913896]
[1747721795974,5.97321425,168.44,168.4,5.97913896]
[1747721796177,0.03801425,168.44,168.41,5.936]
[1747721796477,0.03801425,168.44,168.4,0.04283896]
[1747721796876,0.03801425,168.44,168.43,5.9353]
[1747721797474,5.9336,168.48,168.44,5.9348]
[1747721797784,62.32,168.53,168.42,62.32]
[1747721798179,5.9334,168.49,168.42,62.32]
[1747721798581,0.04547073,168.47,168.44,0.04103283]
[1747721798783,0.04547073,168.47,168.44,5.97573283]
[1747721799276,0.04547073,168.47,168.46,5.9342]
[1747721799482,62.32,168.56,168.46,62.32]
[1747721799985,6.35445157,168.57,168.46,62.32]
[1747721800282,575.4,168.59,168.46,68.67445157]
[1747721800485,0.03929274,168.54,168.5,0.04381109]
[1747721800982,0.03929274,168.54,168.51,5.9323]
[1747721801788,0.03929274,168.54,168.52,5.9321]
[1747721803687,0.03929274,168.54,168.51,5.9324]
[1747721803889,0.03929274,168.54,168.5,62.34381109]
[1747721804288,5.9322,168.52,168.5,0.04381109]
[1747721804588,6.39374431,168.54,168.5,0.04381109]
[1747721805090,5.9324,168.51,168.5,0.04381109]
[1747721812292,5.9343,168.46,168.33,512.9]
[1747721812500,5.9343,168.46,168.42,5.9354]
[1747721813300,5.97798076,168.46,168.42,5.97718102]
[1747721813505,5.9347,168.45,168.42,5.97718102]
[1747721813998,5.97798076,168.46,168.42,0.04178102]
[1747721814204,5.97798076,168.46,168.43,5.9352]
[1747721814406,5.97798076,168.46,168.42,0.04178102]
[1747721814703,5.97798076,168.46,168.42,5.97728102]
[1747721815702,5.9346,168.45,168.42,0.04178102]
[1747721815911,0.04368076,168.46,168.42,0.04178102]
[1747721817704,0.04368076,168.46,168.43,5.9351]
[1747721819009,5.97798076,168.46,168.42,5.97708102]
[1747721819206,0.04368076,168.46,168.42,0.04178102]
[1747721819610,5.97798076,168.46,168.42,5.97708102]
[1747721819809,0.04368076,168.46,168.42,5.97708102]
[1747721820508,0.04368076,168.46,168.43,5.9353]
[1747721821414,0.04368076,168.46,168.44,5.9348]
[1747721822909,0.04368076,168.46,168.45,5.9346]
[1747721825810,0.04368076,168.46,168.44,67.7948]
[1747721826212,0.04368076,168.46,168.44,61.86]
[1747721826909,0.04368076,168.46,168.45,5.9346]
[1747721829714,0.04368076,168.46,168.45,7.836]
[1747721836815,0.04368076,168.46,168.45,9.878]
[1747721837719,61.86,168.55,168.5,5.9327]
[1747721838016,68.62175157,168.58,168.5,5.9327]
[1747721838320,68.62175157,168.58,168.49,5.933]
[1747721838520,68.62175157,168.58,168.48,61.86]
[1747721838816,0.04320222,168.55,168.51,0.03997769]
[1747721839513,5.9314,168.54,168.51,0.03997769]
[1747721840623,5.9318,168.53,168.51,0.03997769]
[1747721840825,0.04320222,168.55,168.51,0.03997769]
[1747721841012,6.39765379,168.55,168.51,0.03997769]
[1747721841418,5.9321,168.52,168.51,0.03997769]
[1747721850430,5.9318,168.53,168.51,0.03997769]
[1747721850821,0.04320222,168.55,168.51,0.03997769]
[1747721851531,0.04320222,168.55,168.54,5.9314]
[1747721855634,10.79999457,168.57,168.56,5.9307]
[1747721855838,14.39999276,168.61,168.53,63.8598]
[1747721856035,14.39999276,168.61,168.54,6.35445157]
[1747721856436,14.39999276,168.61,168.59,5.9295]
[1747721856628,14.39999276,168.61,168.58,61.84504976]
[1747721857535,5.9292,168.61,168.58,61.84504976]
[1747721858333,0.04263653,168.62,168.58,61.84504976]
[1747721858636,14.39999276,168.68,168.6,6.35445157]
[1747721858837,11.26549276,168.68,168.63,6.35445157]
[1747721859038,11.26549276,168.68,168.67,5.9268]
[1747721859939,0.04112639,168.69,168.68,5.9265]
[1747721860239,0.04112639,168.69,168.68,67.7265]
[1747721863435,3.9722,168.78,168.71,5.9254]
[1747721864543,0.04012006,168.76,168.73,0.04390204]
[1747721866839,5.924,168.75,168.73,0.04390204]
[1747721867540,5.96382006,168.76,168.73,0.04390204]
[1747721867738,0.04012006,168.76,168.73,0.04390204]
[1747721868041,5.924,168.75,168.73,0.04390204]
[1747721869242,5.96382006,168.76,168.73,0.04390204]
[1747721869441,0.04012006,168.76,168.73,0.04390204]
[1747721870542,5.96382006,168.76,168.73,0.04390204]
[1747721871945,0.04012006,168.76,168.73,0.04390204]
[1747721872846,0.04012006,168.76,168.75,5.924]
[1747721873540,0.04012006,168.76,168.74,5.9243]
[1747721873740,0.04012006,168.76,168.73,0.04390204]
[1747721873940,0.04012006,168.76,168.73,5.96860204]
[1747721877149,5.96392006,168.76,168.73,0.04390204]
[1747721877449,0.04012006,168.76,168.73,0.04390204]
[1747721878054,5.9242,168.75,168.73,0.04390204]
[1747721879353,5.96392006,168.76,168.73,0.04390204]
[1747721879952,5.9241,168.75,168.73,0.04390204]
[1747721880347,5.924,168.75,168.73,0.04390204]
[1747721881054,5.96392006,168.76,168.73,0.04390204]
[1747721883166,0.04012006,168.76,168.73,0.04390204]
[1747721883666,5.96402006,168.76,168.73,0.04390204]
[1747721884059,0.04012006,168.76,168.73,0.04390204]
[1747721884763,0.04012006,168.76,168.74,5.924]
[1747721885566,0.04012006,168.76,168.75,5.924]
[1747721886165,0.04012006,168.76,168.74,5.9243]
[1747721886463,0.04012006,168.76,168.73,0.04390204]
[1747721886666,5.96392006,168.76,168.73,0.04390204]
[1747721886865,0.04012006,168.76,168.73,5.96860204]